Cogmind - Beta 17 @@@ ROGUE MODE // 2026.07.18 @ 16:47:38 Player: Arttano Result: Self-destructed Performance ------------- Evolutions (4) 2000 Regions Visited (6) 1200 Robots Destroyed (14) 70 Value Destroyed (182) 182 Prototype IDs (8) 160 Alien Tech Used (0) 0 Bonus (1390) 1390 TOTAL SCORE: 5002 Bonus ------- Follower Combat Kills 90 Entered DSFs 500 Registered with UFD 300 Met Optimus in HQ 500 Cogmind --------- Core Integrity 30/850 Matter 269/300 Energy 83/100 System Corruption 7% Temperature Cool (0) Movement Core (50) Location -6/DSF Parts ------- > --- POWER (1) -------- (None) > --- PROPULSION (4) --- (None) > --- UTILITY (8) ------ (None) > --- WEAPON (2) ------- (None) > --- INVENTORY (5) ---- Improved Cooling System Authchip [Device] System Restoration Module Peak State ------------ > --- POWER ------------ Improved Deuterium Engine > --- PROPULSION ------- Overtuned Titanium Leg VSS Leg Cooled Cesium-ion Thruster > --- UTILITY ---------- Scrap Suit Sensor Array Targeting Computer Reaction Control System Makeshift Light Armor Plating Hacking Suite Makeshift Hacking Suite > --- WEAPON ----------- Improved Lightning Gun Improved Lightning Gun > --- INVENTORY -------- Combat Airjet Improved Cooling System Advanced Melee Analysis Suite Authchip [Device] System Restoration Module [Rating: 54] Favorites ----------- Power Light Ion Engine Engine Light Ion Engine Propulsion Wheel Treads Improved Medium Treads Leg Aluminum Leg Wheel Wheel Hover Unit Combat Airjet Flight Unit Cooled Cesium-ion Thruster Utility Small Storage Unit Device Subdweller Optics Storage Small Storage Unit Processor Targeting Computer Hackware Makeshift Hacking Suite Protection Improved Light Armor Plating Weapon Datajack Energy Gun EM Pulse Gun Ballistic Gun Hypervelocity Gauss Rifle Launcher Grenade Launcher Special Weapon CPS Tube Slashing Weapon Power Sword Special Melee Weapon Datajack Build | -11 -10 -10 -10 -9 -6 -6 ------- Run | Yrd Mat Min Sub Scr Fac DSF Slots Evolved 8 | . . . . . 8 . Power . | . . . . . . . Propulsion 2 | . . . . . 2 . Utility 6 | . . . . . 6 . Weapon . | . . . . . . . Parts Attached 38 | 1 1 3 4 12 10 7 Power 3 | . . . 1 2 . . Engine 3 | . . . 1 2 . . Core . | . . . . . . . Reactor . | . . . . . . . Propulsion 10 | . . . . 5 1 4 Treads 3 | . . . . . . 3 Leg 4 | . . . . 4 . . Wheel 1 | . . . . 1 . . Hover 1 | . . . . . . 1 Flight 1 | . . . . . 1 . Utility 13 | 1 1 . 1 2 7 1 Device 7 | 1 1 . 1 . 4 . Storage . | . . . . . . . Processor 2 | . . . . . 1 1 Hackware 2 | . . . . . 2 . Protection 2 | . . . . 2 . . Artifact . | . . . . . . . Weapon 12 | . . 3 2 3 2 2 Energy Gun 3 | . . . 1 . 2 . Energy Cannon . | . . . . . . . Ballistic Gun 2 | . . 1 . 1 . . Ballistic Cannon . | . . . . . . . Launcher 3 | . . 1 1 1 . . Special Weapon 1 | . . . . 1 . . Impact Weapon . | . . . . . . . Slashing Weapon 2 | . . . . . . 2 Piercing Weapon . | . . . . . . . Special Melee Weapon 1 | . . 1 . . . . Unidentified Prototypes 2 | . . . . . 2 . Parts Lost 31 | . . . 6 9 . 16 Power 3 | . . . 1 1 . 1 Propulsion 8 | . . . 2 2 . 4 Utility 11 | . . . 1 3 . 7 Weapon 9 | . . . 2 3 . 4 Highest Loss Streak 10 | . . . 6 6 . 10 To Critical Strikes . | . . . . . . . Average Backups 6 | 6 7 8 7 6 1 4 Power . | 1 1 1 1 . . . Propulsion . | 3 1 1 1 . . . Utility 3 | . 2 3 3 4 1 3 Weapon 1 | 1 1 2 1 1 . . Tool/Special . | . . . . . . . Unused Backups 17 | . 1 5 4 5 . 2 Power 2 | . . 1 1 . . . Propulsion 4 | . . 2 2 . . . Utility 7 | . 1 1 . 3 . 2 Weapon 4 | . . 1 1 2 . . Tool/Special . | . . . . . . . Average Slot Usage (%) 90 | . 100 100 83 96 69 54 Engine 11 | . 14 14 8 13 6 1 Leg 15 | . 28 28 18 13 13 4 Wheel 7 | . . . . 13 . . Device 12 | . 14 14 12 9 21 12 Storage 11 | . 14 14 14 13 . . Hackware 1 | . . . . . 8 11 Protection 2 | . . . . 4 6 2 Energy Gun 2 | . 14 . 4 . 2 5 Ballistic Gun 9 | . 14 11 9 11 . . Launcher 4 | . . 14 9 3 . . Special Melee Weapon 7 | . . 2 4 11 . . Peak Build Rating 54 | 9 8 8 10 22 53 54 Average Rating 16 | 7 7 8 7 15 39 34 On Entrance 15 | 6 9 8 8 7 15 53 Avg Prop Armor Cover (%) 7 | . . . . 8 1 1 Naked Turns 2 | . . . . . . 2 Heaviest Build 30 | 14 14 15 17 27 30 30 Greatest Support 90 | 20 20 20 20 38 31 90 Greatest Overweight (x) 4 | . . . 4 2 . 3 Average Overweight (x) . | . . . . . . . Largest Inventory Capacity 8 | 8 8 8 8 8 5 5 Average Capacity 7 | 8 8 8 8 7 5 5 Most Carried 8 | 8 8 8 8 8 4 5 Average Carried 6 | 6 7 8 7 7 1 4 Final Capacity 8 | 8 8 8 8 5 5 5 Final Carried 8 | 6 8 8 6 5 4 3 Scrap Suit Usage (%) 10 | . . . . . 100 45 Class Distribution -------------------- 84% | Mutant 12% | Scavenger-Mutant Dominant Class ---------------- Mutant | -10/Materials Mutant | -10/Mines Mutant | -10/Subcaves Mutant | -9/Scraptown Scavenger-Mutant | -6/Factory Hacker-Mutant | -6/DSF Resources | -11 -10 -10 -10 -9 -6 -6 ----------- Run | Yrd Mat Min Sub Scr Fac DSF Matter Collected 612 | 214 16 54 24 219 . 85 Remotely . | . . . . . . . Salvage Created 392 | 173 28 33 74 . . 84 Parts 32 | 12 4 11 4 . . 1 Haulers Intercepted . | . . . . . . . Recyclers Shooed . | . . . . . . . Parts Field Recycled . | . . . . . . . Retrieved Matter . | . . . . . . . Parts Self-Destructed . | . . . . . . . Prevented . | . . . . . . . Parts Restored . | . . . . . . . Kills | -11 -10 -10 -10 -9 -6 -6 ------- Run | Yrd Mat Min Sub Scr Fac DSF Combat Hostiles Destroyed 9 | . 2 5 2 . . . Guns 3 | . 2 . 1 . . . AOE 6 | . . 5 1 . . . Classes Destroyed 5 | 2 1 1 1 . . . Builder 1 | . . 1 . . . . Tunneler 3 | 3 . . . . . . Recycler 1 | 1 . . . . . . Swarmer 7 | . 2 5 . . . . Subdweller 2 | . . . 2 . . . Best Kill Streak 4 | 2 2 4 1 . . . Combat Bots Only 3 | . 2 3 1 . . . Max Kills in Single Turn 2 | 1 2 2 1 . . . Gunslinging 1 | . 1 . . . . . Exploded 1 | . . 1 1 . . . Melee . | . . . . . . . Uniques/NPCs Destroyed . | . . . . . . . Combat | -11 -10 -10 -10 -9 -6 -6 -------- Run | Yrd Mat Min Sub Scr Fac DSF Hostile Shots Fired 330 | . 18 17 15 88 6 186 Missed 111 | . 5 6 2 29 3 66 Hits 219 | . 13 11 13 59 3 120 Melee 12 | . . . . 3 . 9 Projectile 207 | . 13 11 13 56 3 111 Critical Strikes 9 | . . . . 2 . 7 Part Disruptions 4 | . . . . . . 4 Damage Taken 3701 | . 120 86 328 967 16 2184 Core 1028 | . 18 16 . 174 . 820 Absorbed by Shields 40 | . . . . . . 40 Core Remaining (%) 58 | 100 . . . 16 . . Volleys Fired 38 | 8 6 6 12 1 . 5 Largest 2 | 2 2 2 2 1 . 2 Hottest 120 | 60 60 50 80 33 . 120 Shots Fired 59 | 16 12 8 15 1 . 7 Gun 49 | 16 12 2 11 1 . 7 Cannon . | . . . . . . . Launcher 10 | . . 6 4 . . . Special . | . . . . . . . Kinetic 24 | 8 6 2 7 1 . . Thermal . | . . . . . . . Explosive 10 | . . 6 4 . . . Electromagnetic 25 | 8 6 . 4 . . 7 Robot Hit Streak 9 | 3 3 2 4 5 . 9 Robot Miss Streak 4 | 2 3 2 4 . . 1 Penetration Max . | . . . . . . . Secondary Targets 1 | . 1 . . . . . Max Gunslinging Chain 1 | . 1 . . . . . Shots Hit Robots 43 | 8 6 5 6 8 . 10 Core Hits 24 | 5 3 8 5 . . 3 Critical Kills . | . . . . . . . Critical Parts Destroyed 1 | . 1 . . . . . Critical Strikes 1 | . 1 . . . . . Destroy 1 | . 1 . . . . . Melee Attacks 15 | . . 2 1 7 . 5 Impact . | . . . . . . . Slashing 5 | . . . . . . 5 Piercing . | . . . . . . . Sneak Attacks 2 | . . 2 . . . . Combat Hostiles . | . . . . . . . Follow-up Attacks 1 | . . . . . . 1 Damage Inflicted 1026 | 130 60 373 142 24 . 297 Guns 363 | 98 58 . 47 7 . 153 Cannons . | . . . . . . . Explosions 500 | 32 . 373 95 . . . Melee 138 | . . . . . . 138 Ramming 25 | . 2 . . 17 . 6 Kinetic 73 | 16 26 . 24 7 . . Thermal 32 | 32 . . . . . . Explosive 468 | . . 373 95 . . . Electromagnetic 290 | 82 32 . 23 . . 153 Impact . | . . . . . . . Slashing 138 | . . . . . . 138 Piercing . | . . . . . . . Highest Corruption 7 | . . . . 1 . 7 Average Corruption 2 | . . . . 1 . 4 Corruption Purged . | . . . . . . . Corruption Blocked . | . . . . . . . Effects 5 | . . . . 2 . 3 Message Errors 1 | . . . . . . 1 Matter Fused 1 | . . . . 1 . . Parts Rejected 1 | . . . . . . 1 Data Loss (minor) 1 | . . . . . . 1 Data Loss (major) 1 | . . . . 1 . . Overload Shots . | . . . . . . . Overflow Damage 15 | . . 3 . 12 . . Projectiles . | . . . . . . . Explosions 3 | . . 3 . . . . Melee 12 | . . . . 12 . . Knockbacks . | . . . . . . . Impact . | . . . . . . . Kinetic . | . . . . . . . Secondary . | . . . . . . . Self-Inflicted Damage 26 | . . 5 18 . . 3 Shots 2 | . . 1 1 . . . Rammed 1 | . . . . . . 1 Targets Rammed 3 | . 1 . . 1 . 1 Kicked 2 | . 1 . . 1 . . Crushed . | . . . . . . . Highest Temperature 96 | 40 20 10 . 96 . . Average Temperature 26 | 16 14 7 . 40 . . Received Heat Transfer 569 | . 24 . . 464 . 81 Siege Activations . | . . . . . . . Martial Activations . | . . . . . . . Shielding Activations . | . . . . . . . Robots Disrupted . | . . . . . . . Combat Hostiles . | . . . . . . . Robots Corrupted . | . . . . . . . Combat Hostiles . | . . . . . . . Parts Fried . | . . . . . . . Impact Corruptions 1 | . . . . 1 . . Robots Melted . | . . . . . . . Combat Hostiles . | . . . . . . . Parts Melted . | . . . . . . . Heat Transferred 50 | 50 . . . . . . Parts Sabotaged . | . . . . . . . Parts Stolen . | . . . . . . . Parts Stripped . | . . . . . . . Power Chain Reactions 1 | 1 . . . . . . Alert | -11 -10 -10 -10 -9 -6 -6 ------- Run | Yrd Mat Min Sub Scr Fac DSF Maximum Alert Level . | . . . . . . . Low Security (%) 100 | 100 100 100 . . 100 100 Level 1 . | . . . . . . . Level 2 . | . . . . . . . Level 3 . | . . . . . . . Level 4 . | . . . . . . . Level 5 . | . . . . . . . High Security . | . . . . . . . Max Security . | . . . . . . . Peak Influence 136 | 5 55 136 . . . 40 Initial 19 | . 3 19 . . . . Average 27 | 2 15 80 . . . 9 Influence Increases 382 | 20 80 157 . . . 125 Destroy 0b10 Robot/C 140 | . 40 100 . . . . Destroy 0b10 Robot/NC 30 | 20 . 5 . . . 5 Destroy Leader 30 | . 10 20 . . . . Destroy Structure 32 | . . 32 . . . . Lose Combat Pursuer 150 | . 30 . . . . 120 Influence Decreases 362 | 15 35 151 56 . . 105 Entered New Map 63 | . 2 31 30 . . . Time Decay 194 | 15 33 120 26 . . . Lost Part 105 | . . . . . . 105 Squads Dispatched 4 | . 1 . . . . 3 Investigation 1 | . 1 . . . . . Extermination . | . . . . . . . Reinforcement 3 | . . . . . . 3 Assault . | . . . . . . . Garrison . | . . . . . . . Intercept . | . . . . . . . Searches Triggered . | . . . . . . . Construction Impeded . | . . . . . . . Haulers Reinforced . | . . . . . . . Active Scanning Responses . | . . . . . . . Cargo Convoy Interrupts . | . . . . . . . Stealth | -11 -10 -10 -10 -9 -6 -6 --------- Run | Yrd Mat Min Sub Scr Fac DSF Distress Signals . | . . . . . . . Communications Jammed . | . . . . . . . Distress Signals . | . . . . . . . Times Spotted 58 | . 6 5 2 23 2 20 Peak Tracking Total 13 | . 3 3 2 7 1 13 Tactical Retreats 6 | . 2 . . . . 4 Traps | -11 -10 -10 -10 -9 -6 -6 ------- Run | Yrd Mat Min Sub Scr Fac DSF Traps Triggered 3 | . 1 . . . . 2 Indirectly . | . . . . . . . Trap Hack Attempts . | . . . . . . . Triggered . | . . . . . . . Disarmed . | . . . . . . . Reprogrammed . | . . . . . . . Reused . | . . . . . . . Traps Extracted . | . . . . . . . Installed . | . . . . . . . Triggered . | . . . . . . . Machines | -11 -10 -10 -10 -9 -6 -6 ---------- Run | Yrd Mat Min Sub Scr Fac DSF Machines Disabled 5 | . . . . 5 . . Max in Single Turn . | . . . . . . . Machines Repaired . | . . . . . . . Machines Dismantled . | . . . . . . . Machines Sabotaged . | . . . . . . . Overloaded Fab Kills . | . . . . . . . Hacking | -11 -10 -10 -10 -9 -6 -6 --------- Run | Yrd Mat Min Sub Scr Fac DSF Machines Accessed 9 | . . . . 7 2 . Terminals 1 | . . . . . 1 . Fabricators . | . . . . . . . Repair Stations . | . . . . . . . Recycling Units 1 | . . . . . 1 . Scanalyzers . | . . . . . . . Garrison Access . | . . . . . . . Total Hacks 51 | . . . . 46 5 . Successful 48 | . . . . 46 2 . Failed 3 | . . . . . 3 . Catastrophic . | . . . . . . . Database Lockouts . | . . . . . . . Manual . | . . . . . . . Terminals 1 | . . . . . 1 . Fabricators . | . . . . . . . Repair Stations . | . . . . . . . Recycling Units 4 | . . . . . 4 . Scanalyzers . | . . . . . . . Garrison Access . | . . . . . . . Terminal Hacks 47 | . . . . 46 1 . Record 41 | . . . . 41 . . Robot Analysis 5 | . . . . 5 . . Open DSF 1 | . . . . . 1 . Fabricator Hacks . | . . . . . . . Repair Station Hacks . | . . . . . . . Recycling Unit Hacks 1 | . . . . . 1 . Retrieve Components 1 | . . . . . 1 . Scanalyzer . | . . . . . . . Garrison Access Hacks . | . . . . . . . Unauthorized Hacks . | . . . . . . . Terminals . | . . . . . . . Fabricators . | . . . . . . . Repair Stations . | . . . . . . . Recycling Units . | . . . . . . . Scanalyzers . | . . . . . . . Garrison Access . | . . . . . . . Data Cores Recovered . | . . . . . . . Used . | . . . . . . . Hacking Detections 1 | . . . . . 1 . Full Trace Events . | . . . . . . . Feedback Events . | . . . . . . . Feedback Blocked . | . . . . . . . Robot Schematics Acquired . | . . . . . . . Robots Built . | . . . . . . . Authchips . | . . . . . . . Time . | . . . . . . . Total Robot Build Rating . | . . . . . . . Part Schematics Acquired . | . . . . . . . Parts Built . | . . . . . . . Authchips . | . . . . . . . Time . | . . . . . . . Total Part Build Rating . | . . . . . . . Part Studies Acquired . | . . . . . . . Parts Repaired . | . . . . . . . Time . | . . . . . . . Parts Recycled . | . . . . . . . Recycled Matter . | . . . . . . . Retrieved Matter . | . . . . . . . Retrieved Components 1 | . . . . . 1 . Parts Scanalyzed . | . . . . . . . Part Schematics Acquired . | . . . . . . . Parts Damaged . | . . . . . . . Bothacking | -11 -10 -10 -10 -9 -6 -6 ------------ Run | Yrd Mat Min Sub Scr Fac DSF Used RIF Installer . | . . . . . . . Robots Hacked 3 | . . 2 1 . . . Non-combat 2 | . . 2 . . . . Combat 1 | . . . 1 . . . Robot Hacks Applied 3 | . . 2 1 . . . parse_system 2 | . . 1 1 . . . no_distress 1 | . . 1 . . . . Relay Couplers Released . | . . . . . . . Fabnet Peak Effective % . | . . . . . . . Robots Rewired . | . . . . . . . Allies Hacked . | . . . . . . . Hacks Repelled . | . . . . . . . Allies | -11 -10 -10 -10 -9 -6 -6 -------- Run | Yrd Mat Min Sub Scr Fac DSF Total Allies 1 | . . . . 1 . . Largest Group 1 | . . . . 1 . . Highest-Rated Group 55 | . . . . 55 . . Highest-Rated Ally 55 | . . . . 55 . . Initial UFD Resources 24 | . . . . . 24 24 Total Orders . | . . . . . . . Ally Attacks 4 | . . . . 4 . . Total Damage 297 | . . . . 297 . . Kills 3 | . . . . 3 . . Allies Corrupted . | . . . . . . . Allies Melted 3 | . . . . 3 . . Intel | -11 -10 -10 -10 -9 -6 -6 ------- Run | Yrd Mat Min Sub Scr Fac DSF Active Infowar (turns) 2119 | 32 177 247 282 1045 211 125 Optics 1131 | . . . 86 1045 . . Sensors 336 | . . . . . 211 125 Terrain 32 | 32 . . . . . . Seismic 620 | . 177 247 196 . . . Robot Analysis Total 5 | . . . . 5 . . Derelict Logs Recovered 1 | . . . . 1 . . Drone Launches . | . . . . . . . Drone Recoveries . | . . . . . . . Exploration | -11 -10 -10 -10 -9 -6 -6 ------------- Run | Yrd Mat Min Sub Scr Fac DSF Turns Passed 2653 | 66 177 247 306 1473 212 172 Spaces Moved 2323 | 32 128 161 208 1477 206 111 Core 72 | . . . 50 . . 22 Treads 6 | . . . . . . 6 Legs 772 | 32 128 161 158 48 206 39 Wheels 1429 | . . . . 1429 . . Hover 44 | . . . . . . 44 Flight . | . . . . . . . Fastest Speed 50 | 120 120 120 120 80 95 50 Average Speed 102 | 120 120 120 129 95 95 105 Slowest Speed 250 | 120 120 120 250 190 95 200 Overloaded Moves . | . . . . . . . Propulsion Burnouts . | . . . . . . . Robots Hopped . | . . . . . . . Potential Cave-ins . | . . . . . . . Cave-ins Triggered . | . . . . . . . Exploration Rate (%) 37 | 3 29 41 19 85 3 81 Regions Visited 6 Branch Regions 3 Pre-discovered Areas . | . . . . . . . Known Exits Taken 2 | . . . . 1 1 . Unknown Exits Taken 4 | 1 1 1 1 . . . Scrap Searched 6 | . . 1 . 5 . . Spaces Dug . | . . . . . . . Terrain Destroyed 60 | . . 37 23 . . . Melee . | . . . . . . . Projectile . | . . . . . . . AOE 60 | . . 37 23 . . . Terrain Rammed . | . . . . . . . Walls Destroyed . | . . . . . . . Machines Disabled . | . . . . . . . Actions | -11 -10 -10 -10 -9 -6 -6 --------- Run | Yrd Mat Min Sub Scr Fac DSF Total 2529 | 46 141 205 234 1534 220 149 Wait 53 | . . 32 4 5 . 12 Move 2317 | 31 127 160 207 1476 205 111 Hop . | . . . . . . . Pick Up 29 | 3 4 1 3 13 4 1 Fast Attach 17 | 1 . . . 5 5 6 Attach 13 | . . . 4 2 5 2 Detach 2 | . . . . 1 1 . Swap 13 | . 1 3 2 7 . . Drop 21 | 3 2 1 1 14 . . Fire 38 | 8 6 6 12 1 . 5 Melee 14 | . . 2 1 7 . 4 Ram 1 | . . . . . . 1 Kick 2 | . 1 . . 1 . . Crush . | . . . . . . . Escape Stasis 7 | . . . . . . 7 Rewire 2 | . . . . 2 . . Trap . | . . . . . . . Miscellaneous . | . . . . . . . Route ------- -11/Scrapyard -10/Materials -10/Mines (discovered 3 exits: [*Mat x2] / [*Sub]) -10/Subcaves -9/Scraptown (discovered 2 exits: *Fac x2) -6/Factory -6/DSF (discovered 1 exit: [*Fac]) History --------- Turn | Location | Event 1 | -11/Scrapyard | Discovered new exit (range 3) 67 | -11/Scrapyard | Entered Materials 224 | -10/Materials | Discovered new exit (range 16) 244 | -10/Materials | Entered Mines 277 | -10/Mines | Discovered new exit (range 6) 319 | -10/Mines | Build established: Mutant 331 | -10/Mines | Received a Rocket Launcher from a helpful Derelict 360 | -10/Mines | Discovered new exit (range 5) 444 | -10/Mines | Found a hidden stash of uninstalled traps 477 | -10/Mines | Discovered new exit (range 5) 491 | -10/Mines | Entered Subcaves 492 | -10/Subcaves | Approached by a straggling Scientist 582 | -10/Subcaves | Shifting Twisted Machinery released Riot Gun 586 | -10/Subcaves | Shifting Twisted Machinery released Battle Rifle 734 | -10/Subcaves | Lost 6 parts (1p2n1u2w) 761 | -10/Subcaves | Scientist uncovered a shortcut to Scraptown 797 | -10/Subcaves | Entered Scraptown 1036 | -9/Scraptown | Visited The Evicted 1064 | -9/Scraptown | Visited IN-MT5's Study 1099 | -9/Scraptown | Visited Cyclists 1134 | -9/Scraptown | Visited UFD Registry 1160 | -9/Scraptown | Visited Awakened 1186 | -9/Scraptown | Visited Assassins FH 1204 | -9/Scraptown | Visited Spacefarers 1255 | -9/Scraptown | Visited SPCMW 1601 | -9/Scraptown | Scanned Subdweller tech in exchange for log data 1604 | -9/Scraptown | Learned Factory emergency access door positions 1629 | -9/Scraptown | Discovered new exit (range 3) 1755 | -9/Scraptown | Registered with UFD as "Cargotorch" 1783 | -9/Scraptown | Visited Botcube Research 1802 | -9/Scraptown | Found Lrg. Botcube 1826 | -9/Scraptown | Visited Infowarlord's Domain 1886 | -9/Scraptown | Visited Analyses Database 1922 | -9/Scraptown | Visited Scrap Suit Storage 1976 | -9/Scraptown | Met Optimus 1976 | -9/Scraptown | Accepted into 0bPrime 2067 | -9/Scraptown | Visited Junk Repository 2070 | -9/Scraptown | Civil war broke out across Scraptown 2131 | -9/Scraptown | Visited Modified Component R&D 2167 | -9/Scraptown | Identified exit to Factory 2172 | -9/Scraptown | Lrg. Botcube activated 2190 | -9/Scraptown | Lrg. Botcube completed mutation into hovering form, armed with 1 gun, 1 launcher, 2 melee weapons 2198 | -9/Scraptown | Lost 3 parts (1p2w) 2221 | -9/Scraptown | Found Scrap Suit 2247 | -9/Scraptown | Core integrity fell below 50% 2270 | -9/Scraptown | Core integrity fell below 20% 2270 | -9/Scraptown | Entered Factory 2270 | -6/Factory | Evolved 8 slots: Propulsion x2, Utility x6 2277 | -6/Factory | Lost 14 allies 2296 | -6/Factory | Lost 6 parts (2n3u1w) 2400 | -6/Factory | Identified exit to DSF 2482 | -6/Factory | Entered DSF 2498 | -6/DSF | Build established: Scavenger-Mutant 2510 | -6/DSF | Additional patrols routed to DSF 2573 | -6/DSF | Lost 6 parts (1p2n2u1w) 2632 | -6/DSF | Discovered new exit (range 14) 2636 | -6/DSF | Core integrity fell below 50% 2652 | -6/DSF | Core integrity fell below 20% 2654 | -6/DSF | Self-destructed Last Messages --------------- 02620_ Acquired 84 matter. 02620_ Critical hit (Burn: +37). 02623_ Slug penetrates Wall. 02629_ Cmb. Airjet destroyed. 02629_ Mak. Hacking Suite destroyed. 02631_ Power Sword destroyed. 02632_ EXIT=FOUND 02634_ Acquired Imp. Medium Treads. 02636_ System corrupted: Power Sword rejected. 02636_ Acquired Power Sword. 02639_ Acquired Imp. Medium Treads. 02639_ Power Sword destroyed. 02642_ Acquired Imp. Medium Treads. 02643_ ALERT: Suspicious intruders detected, dispatching Cutter reinforcements to area. 02644_ X-67 Chaingunner springs to life. 02646_ Imp. Medium Treads severed. 02650_ Slammed into C-17 Slicer. 02652_ /KJ OXDSK1R#AFE86CB>QFY5O7CIFM 02652_ Hacking Suite severed. Map ----- +----------------------------------------------------+ | ????????????????????##% ###!!!# ### | | ????????????????????#== ########## | | ????????????????????#== #??????#!! | | ????????????????????#== #??????#! | | ????????????????????##" ###??????### | | ????????????????????#!! !!#??????# | | ????????????????????#!! !!#??????# | | ????????????????????#!! !!#??????# | | ????????????#???###?### ############ | | ????????????# ?#!!!?## ###[[[# ## | | ?????????? ## #!!!## % ##[[[# ## | | ????????? | | ????????? " H ^% | | ????????? "%" ! % | | ????????????#!!!#]]]## % % ##!!!#// ## | | ????????????????#]???## "##!!!#/ /## | | ????????????????????### ############# | | ????????????????????#!! !!#?????????? | | ????????????????????#!! !!##????????? | | ????????????????????#!! !!"#????????? | | ????????????????????##" ### #???????? | | ????????????????????# #?#???????? | | ????????????????????# #?????????? | | ?????????????######## #?????????? | | ??????### ???#==#===### ###?????????? | | ??????#"" ##@c#===### ###?????????? | | ??????""" cccxssx #?????????? | | ??????#""< x s #?????????? | | ??????#"""""##==# # /// #?????????? | | ??????#"""""?######## /// #?????????? | | ???????###"?????????#########?????????? | | ?????????#????????????????????????????? | | ??????????????????????????????????????? | | ??????????????????????????????????????? | | ??????????????????????????????????????? | | ??????????????????????????????????????? | | ??????????????????????????????????????? | | ??????????????????????????????????????? | | | | | | | | | | | | | | | | | | | | | | | | | +----------------------------------------------------+ Best States ------------- Heat Dissipation 64 Energy Generation 16 Energy Capacity 290 Matter Stores 300 Matter Capacity 300 Sight Range 21 Robot Scan Range 14 Terrain Scan Range 16 Terrain Scan Density 10 Armor Coverage 150 Evasion (%) 64 Targeting Accuracy 5 Melee Accuracy 8 Recoil Reduction 2 Offensive Hacking 21 Authchip Count 1 Item Schematics ----------------- None Robot Schematics ------------------ None Fabricated ------------ Nothing Repaired ---------- Nothing Studied --------- None Alien Tech Used ----------------- None Achievements -------------- Civilization 2243 Frankenstein Link The Feds Nice Directions, Buddy Plot Armor Uncivil War Challenges ------------ None Game ------ Seed ThermicParticleWell Manual? 0 Play Time 01:03:26 Cumulative 18.2 hours Start 2026.07.18 @ 15:33:08 End 2026.07.18 @ 16:47:38 Sessions 1 Manual Loads 0 Difficulty Rogue Special Mode None Game No. 24 Rogue 24 Adventurer 0 Explorer 0 Win Type - Total 0 Types 0/0/0/0/0/0/0/0/0/0 Lore% 19 Gallery% 15 Achievement% 16 Wizard Run 0 Options --------- Layout 2 ASCII 0 Keyboard 1 Movement Numpad Keybinds 1 Fullscreen 2 Font 24/Terminus Map View 50x44 Zoom Use 0% Tactical HUD 1 Map Filters NONE Filters NONE Steam 1 RUN: 45baeb04-32f0-48a8-9ade-1462a1cfba63